fUSD/lending_fUSD_20250804
["ID","MTS","AMOUNT","RATE_DAILY","PERIOD"]
[377253463,1754306796289,-160.0,0.00047999,120]
[377253464,1754306796316,-187.78006525,0.00047999,120]
[377253465,1754306796343,-500.0,0.00047999,120]
[377253466,1754306796572,-500.0,0.00047999,120]
[377253467,1754306796601,-5199.43684444,0.00047999,120]
[377253468,1754306796632,-160.0,0.00047999,120]
[377253469,1754306796665,-151.0,0.00047999,120]
[377253470,1754306796693,-151.0,0.00047999,120]
[377253471,1754306796725,-500.0,0.00047999,120]
[377253472,1754306796755,-5391.81600769,0.00047999,120]
[377253473,1754306796783,-194.72792766,0.00047999,120]
[377253474,1754306796815,-500.0,0.00047999,120]
[377253475,1754306796848,-160.0,0.00047999,120]
[377253476,1754306796876,-151.0,0.00047999,120]
[377253477,1754306796905,-500.0,0.00047999,120]
[377253478,1754306796933,-5591.31319997,0.00047999,120]
[377253479,1754306796960,-202.6771522,0.00047999,120]
[377253480,1754306796988,-500.0,0.00047999,120]
[377253481,1754306797015,-151.0,0.00047999,120]
[377253482,1754306797044,-500.0,0.00047999,120]
[377253483,1754306797072,-500.0,0.00047999,120]
[377253484,1754306797102,-5798.19178837,0.00047999,120]
[377253485,1754306797129,-151.0,0.00047999,120]
[377253486,1754306797156,-500.0,0.00047999,120]
[377253487,1754306797183,-500.0,0.00047999,120]
[377253488,1754306797208,-151.0,0.00047999,120]
[377253489,1754306797235,-6012.72488454,0.00047999,120]
[377253490,1754306797262,-500.0,0.00047999,120]
[377253491,1754306797290,-500.0,0.00047999,120]
[377253492,1754306797317,-500.0,0.00047999,120]
[377253493,1754306797346,-500.0,0.00047999,120]
[377253494,1754306797375,-207.4,0.00047999,120]
[377253495,1754306797404,-843.37969758,0.00047999,120]
[377253496,1754306797433,-151.0,0.00047999,120]
[377253497,1754306797460,-500.0,0.00047999,120]
[377253498,1754306797489,-500.0,0.00047999,120]
[377253499,1754306797516,-500.0,0.00047999,120]
[377253500,1754306797543,-500.0,0.00047999,120]
[377253501,1754306797572,-500.0,0.00047999,120]
[377253502,1754306797600,-3015888.5553868,0.00048,120]
[377253503,1754306797627,-1000.0,0.00048,120]
[377253504,1754306797653,-566.87036337,0.00048,120]
[377253505,1754306797679,-500.0,0.00048,120]
[377253506,1754306797704,-696.85486091,0.00048,60]
[377253507,1754306797731,-295.05414135,0.00048,120]
[377253508,1754306797759,-300.0,0.00048,120]
[377253509,1754306797787,-500.0,0.00048,120]
[377253510,1754306797817,-1000.0,0.00048,120]
[377253511,1754306797845,-2627.9093222,0.00048,120]
[377253512,1754306797876,-437.79901629,0.00048,60]
[377253513,1754306797903,-250.0,0.00048,30]
[377253514,1754306797929,-250.0,0.00048,30]
[377253515,1754306797956,-250.0,0.00048,30]
[377253516,1754306797982,-250.0,0.00048,30]
[377253517,1754306798009,-250.0,0.00048,30]
[377253518,1754306798036,-250.0,0.00048,30]
[377253519,1754306798063,-250.0,0.00048,30]
[377253520,1754306798090,-250.0,0.00048,30]
[377253521,1754306798116,-250.0,0.00048,30]
[377253522,1754306798142,-256.0,0.00048,30]
[377253523,1754306798169,-1188383.84519471,0.00048,120]
[377253524,1754306826843,182.34781444,0.0003013,120]
[377253525,1754306829086,-395.69241545,0.0002421,10]
[377253526,1754306829121,-395.69241545,0.00024866,12]
[377253527,1754306829153,-395.69241545,0.00025521,13]
[377253528,1754306829186,-395.69241545,0.00026176,14]
[377253529,1754306829219,-395.69241545,0.00026831,15]
[377253530,1754306829253,-395.69241545,0.00027486,17]
[377253531,1754306829286,-395.69241545,0.00028141,18]
[377253532,1754306829318,-395.69241545,0.00028797,19]
[377253533,1754306829351,-395.69241545,0.00029452,21]
[377253534,1754306829382,-395.69241545,0.00030107,22]
[377253535,1754306829415,-395.69241545,0.00030762,23]
[377253536,1754306829447,-395.69241545,0.00031417,24]
[377253537,1754306829479,-395.69241545,0.00032072,26]
[377253538,1754306829513,-395.69241545,0.00032728,27]
[377253539,1754306829546,-395.69241545,0.00033383,28]
[377253540,1754306829582,-395.69241545,0.00034038,30]
[377253541,1754306829616,-395.69241545,0.00034693,31]
[377253542,1754306829649,-395.69241545,0.00035348,32]
[377253543,1754306829675,-457.0,0.00036,30]
[377253544,1754306829707,-395.69241545,0.00036003,33]
[377253545,1754306829743,-395.69241545,0.00036659,35]
[377253546,1754306829777,-395.69241545,0.00037314,36]
[377253547,1754306829811,-395.69241545,0.00037969,37]
[377253548,1754306829842,-215.66062712,0.00038355,15]
[377253549,1754306829869,-196.05850044,0.00038355,15]
[377253550,1754306829942,-7788.0,0.00038603,120]
[377253551,1754306829977,-395.69241545,0.00038624,39]
[377253552,1754306830285,-4183.22,0.00039,14]
[377253553,1754306830353,-395.69241545,0.00039279,40]
[377253554,1754306830455,-395.69241545,0.00039934,41]
[377253555,1754306830511,-151.0,0.0004,14]
[377253556,1754306830540,-152.649201,0.0004,14]
[377253557,1754306830568,-4183.22,0.000402,14]
[377253558,1754306830657,-151.0,0.00040547,14]
[377253559,1754306830695,-395.69241545,0.0004059,42]
[377253560,1754306830724,-390.30915069,0.00040766,120]
[377253561,1754306830781,-1929.21757971,0.00041,120]
[377253562,1754306830847,-395.69241545,0.00041245,44]
[377253563,1754306830875,-1533.52106174,0.00041269,10]
[377253564,1754306830929,-151.0,0.00041369,14]
[377253565,1754306830957,-4183.22,0.000414,14]
[377253566,1754306831029,-150.0,0.00041673,10]
[377253567,1754306831063,-395.69241545,0.000419,45]
[377253568,1754306831128,-275.211762,0.00041917,14]
[377253569,1754306831195,-250.0,0.00042221,10]
[377253570,1754306831260,-4183.22,0.000427,14]
[377253571,1754306831322,-350.0,0.00042768,10]
[377253572,1754306831415,-334.17196459,0.00043316,10]
[377253573,1754306831443,-565.73394077,0.00043347,14]
[377253574,1754306831515,-400.0,0.00043835,120]
[377253575,1754306831542,-1639.27,0.00043835,120]
[377253576,1754306831569,-2137.86,0.00043835,120]
[377253577,1754306831603,-2789.38,0.00043835,120]
[377253578,1754306831632,-637.5,0.00043835,120]
[377253579,1754306831660,-406.91,0.00043835,120]
[377253580,1754306831690,-505.0,0.00043835,120]
[377253581,1754306831722,-3296.67,0.00043835,120]
[377253582,1754306831750,-1100.75,0.00043835,120]
[377253583,1754306831778,-1499.25,0.00043835,120]
[377253584,1754306831807,-5294.45,0.00043835,120]
[377253585,1754306831836,-1088.77,0.00043835,120]
[377253586,1754306831864,-1352.26,0.00043835,120]
[377253587,1754306831891,-411.03,0.00043835,60]
[377253588,1754306831919,-496.52,0.00043835,120]
[377253589,1754306831949,-3717.59,0.00043835,120]
[377253590,1754306831978,-1674.1,0.00043835,120]
[377253591,1754306832005,-1022.91,0.00043835,120]
[377253592,1754306832036,-2643.96,0.00043835,120]
[377253593,1754306832063,-439.85,0.00043835,120]
[377253594,1754306832093,-2317.11,0.00043835,120]
[377253595,1754306832120,-1175.8,0.00043835,120]
[377253596,1754306832146,-902.64,0.00043835,120]
[377253597,1754306832172,-889.46,0.00043835,120]
[377253598,1754306832200,-716.87,0.00043835,120]
[377253599,1754306832227,-1218.23,0.00043835,120]
[377253600,1754306832255,-3274.38,0.00043835,120]
[377253601,1754306832281,-679.6,0.00043835,120]
[377253602,1754306832308,-1528.27,0.00043835,120]
[377253603,1754306832336,-2298.94,0.00043835,120]
[377253604,1754306832364,-1060.53,0.00043835,120]
[377253605,1754306832391,-1306.33,0.00043835,120]
[377253606,1754306832418,-843.75,0.00043835,120]
[377253607,1754306832446,-400.0,0.00043835,120]
[377253608,1754306832472,-1373.45,0.00043835,120]
[377253609,1754306832499,-1636.08,0.00043864,30]
[377253610,1754306832526,-1179.29,0.00043864,30]
[377253611,1754306832552,-1179.29,0.00043864,30]
[377253612,1754306832583,-1179.29,0.00043864,30]
[377253613,1754306832611,-1179.29,0.00043864,30]
[377253614,1754306832639,-400.0,0.00044108,120]
[377253615,1754306832666,-400.0,0.00044108,120]
[377253616,1754306833064,-400.0,0.00044108,120]
[377253617,1754306833094,-400.0,0.00044108,120]
[377253618,1754306833122,-400.0,0.00044108,120]
[377253619,1754306833152,-851.35,0.00044108,120]
[377253620,1754306833184,-4176.03,0.00044108,120]
[377253621,1754306833215,-432.6,0.00044108,120]
[377253622,1754306833244,-792.3,0.00044108,60]
[377253623,1754306833273,-400.0,0.00044108,120]
[377253624,1754306833301,-596.2,0.00044108,120]
[377253625,1754306833330,-4034.67,0.00044108,120]
[377253626,1754306833358,-400.0,0.00044108,120]
[377253627,1754306833386,-1548.61,0.00044109,120]
[377253628,1754306833414,-400.0,0.00044109,120]
[377253629,1754306833442,-1331.86,0.00044109,120]
[377253630,1754306833469,-1639.27,0.00044109,120]
[377253631,1754306833497,-2137.86,0.00044109,120]
[377253632,1754306833525,-2789.38,0.00044109,120]
[377253633,1754306833552,-637.5,0.00044109,120]
[377253634,1754306833582,-505.0,0.00044109,120]
[377253635,1754306833612,-3296.67,0.00044109,120]
[377253636,1754306833640,-1100.75,0.00044109,120]
[377253637,1754306833668,-1499.25,0.00044109,120]
[377253638,1754306833696,-5294.45,0.00044109,120]
[377253639,1754306833724,-1088.77,0.00044109,120]
[377253640,1754306833751,-1352.26,0.00044109,120]
[377253641,1754306833778,-411.03,0.00044109,60]
[377253642,1754306833806,-3717.59,0.00044109,120]
[377253643,1754306833834,-496.52,0.00044109,120]
[377253644,1754306833862,-1674.1,0.00044109,120]
[377253645,1754306833889,-1022.91,0.00044109,120]
[377253646,1754306833915,-2643.96,0.00044109,120]
[377253647,1754306833942,-439.85,0.00044109,120]
[377253648,1754306833970,-2317.11,0.00044109,120]
[377253649,1754306833997,-1175.8,0.00044109,120]
[377253650,1754306834023,-902.64,0.00044109,120]
[377253651,1754306834049,-889.46,0.00044109,120]
[377253652,1754306834075,-716.87,0.00044109,120]
[377253653,1754306834102,-1218.23,0.00044109,120]
[377253654,1754306834130,-3274.38,0.00044109,120]
[377253655,1754306834159,-679.6,0.00044109,120]
[377253656,1754306834187,-1528.27,0.00044109,120]
[377253657,1754306834215,-1060.53,0.00044109,120]
[377253658,1754306834242,-2298.94,0.00044109,120]
[377253659,1754306834269,-843.75,0.00044109,120]
[377253660,1754306834296,-381.29,0.00044109,120]
[377253661,1754306834324,-1306.33,0.00044109,120]
[377253662,1754306834353,-4183.22,0.000443,14]
[377253663,1754306834379,-400.0,0.00044382,120]
[377253664,1754306834406,-400.0,0.00044382,120]
[377253665,1754306834433,-400.0,0.00044382,120]
[377253666,1754306834459,-400.0,0.00044382,120]
[377253667,1754306834486,-400.0,0.00044382,120]
[377253668,1754306834513,-851.35,0.00044382,120]
[377253669,1754306834542,-4176.03,0.00044382,120]
[377253670,1754306834569,-432.6,0.00044382,120]
[377253671,1754306834602,-792.3,0.00044382,60]
[377253672,1754306834630,-400.0,0.00044382,120]
[377253673,1754306834658,-596.2,0.00044382,120]
[377253674,1754306834686,-4034.67,0.00044382,120]
[377253675,1754306834714,-400.0,0.00044382,120]
[377253676,1754306834742,-1548.61,0.00044383,120]
[377253677,1754306834769,-1331.86,0.00044383,120]
[377253678,1754306834798,-400.0,0.00044383,120]
[377253679,1754306834831,-1639.27,0.00044383,120]
[377253680,1754306834860,-2137.86,0.00044383,120]
[377253681,1754306834888,-2789.38,0.00044383,120]
[377253682,1754306834916,-637.5,0.00044383,120]
[377253683,1754306834944,-505.0,0.00044383,120]
[377253684,1754306834972,-3296.67,0.00044383,120]
[377253685,1754306835000,-1100.75,0.00044383,120]
[377253686,1754306835027,-1499.25,0.00044383,120]
[377253687,1754306835053,-5294.45,0.00044383,120]
[377253688,1754306835081,-1088.77,0.00044383,120]
[377253689,1754306835108,-1352.26,0.00044383,120]
[377253690,1754306835136,-411.03,0.00044383,60]
[377253691,1754306835164,-3717.59,0.00044383,120]
[377253692,1754306835191,-496.52,0.00044383,120]
[377253693,1754306835300,-1674.1,0.00044383,120]
[377253694,1754306835329,-1022.91,0.00044383,120]
[377253695,1754306835356,-439.85,0.00044383,120]
[377253696,1754306835382,-2643.96,0.00044383,120]
[377253697,1754306835409,-2317.11,0.00044383,120]
[377253698,1754306835434,-1175.8,0.00044383,120]
[377253699,1754306835459,-902.64,0.00044383,120]
[377253700,1754306835486,-889.46,0.00044383,120]
[377253701,1754306835512,-716.87,0.00044383,120]
[377253702,1754306835542,-1218.23,0.00044383,120]
[377253703,1754306835570,-3274.38,0.00044383,120]
[377253704,1754306835602,-679.6,0.00044383,120]
[377253705,1754306835629,-1528.27,0.00044383,120]
[377253706,1754306835658,-2298.94,0.00044383,120]
[377253707,1754306835686,-1060.53,0.00044383,120]
[377253708,1754306835716,-843.75,0.00044383,120]
[377253709,1754306835745,-1306.33,0.00044383,120]
[377253710,1754306835774,-400.0,0.00044656,120]
[377253711,1754306835802,-400.0,0.00044656,120]
[377253712,1754306835829,-400.0,0.00044656,120]
[377253713,1754306835856,-400.0,0.00044656,120]
[377253714,1754306835883,-400.0,0.00044656,120]
[377253715,1754306835911,-400.0,0.00044656,120]
[377253716,1754306835938,-851.35,0.00044656,120]
[377253717,1754306835968,-4176.03,0.00044656,120]
[377253718,1754306835996,-432.6,0.00044656,120]
[377253719,1754306836025,-792.3,0.00044656,60]
[377253720,1754306836051,-400.0,0.00044656,120]
[377253721,1754306836078,-596.2,0.00044656,120]
[377253722,1754306836105,-4034.67,0.00044656,120]
[377253723,1754306836132,-400.0,0.00044656,120]
[377253724,1754306836159,-1548.71204476,0.00044657,120]
[377253725,1754306836185,-1332.06686838,0.00044657,120]
[377253726,1754306836212,-172.71338852,0.00044657,120]
[377253727,1754306836239,-1639.48,0.00044657,120]
[377253728,1754306836275,-2138.02,0.00044657,120]
[377253729,1754306836303,-2789.46,0.00044657,120]
[377253730,1754306836330,-637.55372541,0.00044657,120]
[377253731,1754306836358,-505.04460717,0.00044657,120]
[377253732,1754306836389,-3296.78738567,0.00044657,120]
[377253733,1754306836417,-1100.8637968,0.00044657,120]
[377253734,1754306836447,-1499.47526709,0.00044657,120]
[377253735,1754306836476,-5294.56,0.00044657,120]
[377253736,1754306836505,-1088.89,0.00044657,120]
[377253737,1754306836533,-1352.44829395,0.00044657,120]
[377253738,1754306836561,-411.15155291,0.00044657,60]
[377253739,1754306836591,-496.61,0.00044657,120]
[377253740,1754306836618,-1674.27107587,0.00044657,120]
[377253741,1754306836650,-3717.79,0.00044657,120]
[377253742,1754306836681,-1022.9910127,0.00044657,120]
[377253743,1754306836709,-440.07165193,0.00044657,120]
[377253744,1754306836738,-2644.12,0.00044657,120]
[377253745,1754306836768,-2317.17,0.00044657,120]
[377253746,1754306836796,-1176.02397447,0.00044657,120]
[377253747,1754306836825,-902.68,0.00044657,120]
[377253748,1754306836854,-889.58942958,0.00044657,120]
[377253749,1754306836883,-716.99,0.00044657,120]
[377253750,1754306836911,-1218.44,0.00044657,120]
[377253751,1754306836938,-3274.56,0.00044657,120]
[377253752,1754306836966,-679.72,0.00044657,120]
[377253753,1754306836992,-1528.44281156,0.00044657,120]
[377253754,1754306837020,-1060.69570679,0.00044657,120]
[377253755,1754306837047,-2298.97,0.00044657,120]
[377253756,1754306837075,-843.96997456,0.00044657,120]
[377253757,1754306837104,-1306.38,0.00044657,120]
[377253758,1754306837131,-239.0,0.000449,30]
[377253759,1754306837158,-400.0,0.0004493,120]
[377253760,1754306837184,-400.0,0.0004493,120]
[377253761,1754306837211,-400.0,0.0004493,120]
[377253762,1754306837238,-400.0,0.0004493,120]
[377253763,1754306837264,-400.0,0.0004493,120]
[377253764,1754306837290,-400.0,0.0004493,120]
[377253765,1754306837316,-851.35,0.0004493,120]
[377253766,1754306837344,-4176.03,0.0004493,120]
[377253767,1754306837371,-432.6,0.0004493,120]
[377253768,1754306837398,-792.3,0.0004493,60]
[377253769,1754306837423,-400.0,0.0004493,120]
[377253770,1754306837449,-596.2,0.0004493,120]
[377253771,1754306837476,-4034.67,0.0004493,120]
[377253772,1754306837501,-400.0,0.0004493,120]
[377253773,1754306837533,-400.0,0.00045204,120]
[377253774,1754306837561,-400.0,0.00045204,120]
[377253775,1754306837589,-400.0,0.00045204,120]
[377253776,1754306837616,-392.92067136,0.00045204,120]
[377253777,1754306837644,-400.0,0.00045204,120]
[377253778,1754306837673,-329.58711233,0.00045204,120]
[377253779,1754306837703,-851.35,0.00045204,120]
[377253780,1754306837734,-4176.03,0.00045204,120]
[377253781,1754306837762,-432.6,0.00045204,120]
[377253782,1754306837789,-792.3,0.00045204,60]
[377253783,1754306837818,-400.0,0.00045204,120]
[377253784,1754306837847,-596.2,0.00045204,120]
[377253785,1754306837876,-4034.67,0.00045204,120]
[377253786,1754306837903,-449.9326307,0.00045204,120]
[377253787,1754306837930,-407.43612226,0.00045478,120]
[377253788,1754306837958,-400.0,0.00045478,120]
[377253789,1754306837985,-400.0,0.00045478,120]
[377253790,1754306838011,-399.3602625,0.00045478,120]
[377253791,1754306838042,-851.35,0.00045478,120]
[377253792,1754306838072,-4176.03,0.00045478,120]
[377253793,1754306838105,-432.6,0.00045478,120]
[377253794,1754306838138,-792.3,0.00045478,60]
[377253795,1754306838167,-400.0,0.00045478,120]
[377253796,1754306838194,-596.2,0.00045478,120]
[377253797,1754306838223,-4034.67,0.00045478,120]
[377253798,1754306838253,-400.0,0.00045752,120]
[377253799,1754306838284,-337.29,0.00045752,120]
[377253800,1754306838317,-851.35,0.00045752,120]
[377253801,1754306838348,-4176.03,0.00045752,120]
[377253802,1754306838376,-432.6,0.00045752,120]
[377253803,1754306838404,-792.3,0.00045752,60]
[377253804,1754306838433,-163.24558279,0.00045752,120]
[377253805,1754306838461,-596.2,0.00045752,120]
[377253806,1754306838490,-4034.67,0.00045752,120]
[377253807,1754306838519,-403.38973095,0.00046,120]
[377253808,1754306838547,-400.0,0.00046026,120]
[377253809,1754306838577,-851.35,0.00046026,120]
[377253810,1754306838825,-4176.03,0.00046026,120]
[377253811,1754306838857,-432.6,0.00046026,120]
[377253812,1754306838887,-792.3,0.00046026,60]
[377253813,1754306838916,-596.2,0.00046026,120]
[377253814,1754306838946,-4034.67,0.00046026,120]
[377253815,1754306838974,-1454.66053297,0.00046027,120]
[377253816,1754306839001,-400.0,0.000463,120]
[377253817,1754306839029,-4183.22,0.000463,14]
[377253818,1754306839058,-851.35,0.000463,120]
[377253819,1754306839086,-4176.03,0.000463,120]
[377253820,1754306839114,-432.6,0.000463,120]
[377253821,1754306839141,-792.3,0.000463,60]
[377253822,1754306839169,-596.2,0.000463,120]
[377253823,1754306839198,-4034.67,0.000463,120]
[377253824,1754306839226,-400.0,0.00046574,120]
[377253825,1754306839255,-851.35,0.00046574,120]
[377253826,1754306839285,-4176.03,0.00046574,120]
[377253827,1754306839326,-432.6,0.00046574,120]
[377253828,1754306839359,-792.3,0.00046574,60]
[377253829,1754306839388,-596.2,0.00046574,120]
[377253830,1754306839417,-4034.67,0.00046574,120]
[377253831,1754306839447,-951.8102,0.000466,30]
[377253832,1754306839478,-400.0,0.00046848,120]
[377253833,1754306839507,-851.35,0.00046848,120]
[377253834,1754306839539,-4176.03,0.00046848,120]
[377253835,1754306839570,-432.6,0.00046848,120]
[377253836,1754306839604,-792.3,0.00046848,60]
[377253837,1754306839634,-596.2,0.00046848,120]
[377253838,1754306839665,-4034.67,0.00046848,120]
[377253839,1754306839696,-505.0,0.00046851,10]
[377253840,1754306839729,-50000.0,0.00047,47]
[377253841,1754306839759,-1000.0,0.0004701,14]
[377253842,1754306839790,-275.95287659,0.000471,10]
[377253843,1754306839820,-400.0,0.00047122,120]
[377253844,1754306839853,-851.35,0.00047122,120]
[377253845,1754306839890,-4176.03,0.00047122,120]
[377253846,1754306839921,-432.6,0.00047122,120]
[377253847,1754306839951,-792.3,0.00047122,60]
[377253848,1754306839982,-596.2,0.00047122,120]
[377253849,1754306840013,-4034.67,0.00047122,120]
[377253850,1754306840043,-150.0,0.00047276,14]
[377253851,1754306840074,-888.0,0.00047348,120]
[377253852,1754306840105,-400.0,0.00047396,120]
[377253853,1754306840133,-851.35,0.00047396,120]
[377253854,1754306840163,-4176.03,0.00047396,120]
[377253855,1754306840192,-432.6,0.00047396,120]
[377253856,1754306840220,-792.3,0.00047396,60]
[377253857,1754306840250,-596.2,0.00047396,120]
[377253858,1754306840280,-4034.67,0.00047396,120]
[377253859,1754306840309,-154.06404217,0.00047472,14]
[377253860,1754306840341,-154.58355314,0.0004767,120]
[377253861,1754306840370,-851.35,0.0004767,120]
[377253862,1754306840400,-4176.03,0.0004767,120]
[377253863,1754306840429,-432.6,0.0004767,120]
[377253864,1754306840458,-792.3,0.0004767,60]
[377253865,1754306840495,-596.2,0.0004767,120]
[377253866,1754306840526,-4034.67,0.0004767,120]
[377253867,1754306840560,-888.0,0.00047896,120]
[377253868,1754306840594,-4183.22,0.000479,14]
[377253869,1754306840626,-851.50263117,0.00047944,120]
[377253870,1754306840660,-4176.1142609,0.00047944,120]
[377253871,1754306840691,-432.71516134,0.00047944,120]
[377253872,1754306840724,-792.3,0.00047944,60]
[377253873,1754306840757,-596.32559464,0.00047944,120]
[377253874,1754306840790,-4034.78,0.00047944,120]
[377253875,1754306840826,-888.0,0.00047998,120]
[377253876,1754306840863,-888.0,0.00047998,120]
[377253877,1754306840893,-151.0,0.00047999,120]
[377253878,1754306840924,-215.0738,0.00047999,120]
[377253879,1754306840955,-500.0,0.00047999,120]
[377253880,1754306840986,-500.0,0.00047999,120]
[377253881,1754306841018,-500.0,0.00047999,120]
[377253882,1754306841048,-151.0,0.00047999,120]
[377253883,1754306841083,-223.0315306,0.00047999,120]
[377253884,1754306841115,-500.0,0.00047999,120]
[377253885,1754306841148,-500.0,0.00047999,120]
[377253886,1754306841179,-151.0,0.00047999,120]
[377253887,1754306841210,-231.28369723,0.00047999,120]
[377253888,1754306841240,-500.0,0.00047999,120]
[377253889,1754306841271,-500.0,0.00047999,120]
[377253890,1754306841301,-151.0,0.00047999,120]
[377253891,1754306841332,-239.84119403,0.00047999,120]
[377253892,1754306841363,-500.0,0.00047999,120]
[377253893,1754306841392,-500.0,0.00047999,120]
[377253894,1754306841422,-500.0,0.00047999,120]
[377253895,1754306841451,-248.71531821,0.00047999,120]
[377253896,1754306841482,-500.0,0.00047999,120]
[377253897,1754306841511,-500.0,0.00047999,120]
[377253898,1754306841541,-151.0,0.00047999,120]
[377253899,1754306841570,-257.91778498,0.00047999,120]
[377253900,1754306841608,-500.0,0.00047999,120]
[377253901,1754306841637,-500.0,0.00047999,120]
[377253902,1754306841670,-500.0,0.00047999,120]
[377253903,1754306842191,-500.0,0.00047999,120]
[377253904,1754306842222,-500.0,0.00047999,120]
[377253905,1754306842250,-500.0,0.00047999,120]
[377253906,1754306842278,-267.46074303,0.00047999,120]
[377253907,1754306842307,-277.35679052,0.00047999,120]
[377253908,1754306842335,-500.0,0.00047999,120]
[377253909,1754306842367,-500.0,0.00047999,120]
[377253910,1754306842399,-500.0,0.00047999,120]
[377253911,1754306842430,-500.0,0.00047999,120]
[377253912,1754306842461,-500.0,0.00047999,120]
[377253913,1754306842490,-500.0,0.00047999,120]
[377253914,1754306842518,-287.61899177,0.00047999,120]
[377253915,1754306842545,-500.0,0.00047999,120]
[377253916,1754306842574,-298.26089446,0.00047999,120]
[377253917,1754306842605,-500.0,0.00047999,120]
[377253918,1754306842634,-500.0,0.00047999,120]
[377253920,1754306842662,-309.29654756,0.00047999,120]
[377253921,1754306842692,-151.0,0.00047999,120]
[377253922,1754306842722,-500.0,0.00047999,120]
[377253923,1754306842753,-151.0,0.00047999,120]
[377253924,1754306842784,-320.74051982,0.00047999,120]
[377253925,1754306842816,-500.0,0.00047999,120]
[377253926,1754306842847,-332.60791905,0.00047999,120]
[377253927,1754306842879,-151.0,0.00047999,120]
[377253928,1754306842909,-500.0,0.00047999,120]
[377253929,1754306842941,-344.91441206,0.00047999,120]
[377253930,1754306842972,-151.0,0.00047999,120]
[377253931,1754306843001,-500.0,0.00047999,120]
[377253932,1754306843031,-357.6762453,0.00047999,120]
[377253933,1754306843060,-500.0,0.00047999,120]
[377253934,1754306843090,-151.0,0.00047999,120]
[377253935,1754306843120,-151.0,0.00047999,120]
[377253936,1754306843148,-500.0,0.00047999,120]
[377253937,1754306843178,-370.91026638,0.00047999,120]
[377253938,1754306843209,-151.0,0.00047999,120]
[377253939,1754306843238,-200.0,0.00047999,120]
[377253940,1754306843267,-384.63394623,0.00047999,120]
[377253941,1754306843297,-151.0,0.00047999,120]
[377253942,1754306843335,-398.86540225,0.00047999,120]
[377253943,1754306843366,-151.0,0.00047999,120]
[377253944,1754306843398,-151.0,0.00047999,120]
[377253945,1754306843427,-151.0,0.00047999,120]
[377253946,1754306843458,-151.0,0.00047999,120]
[377253947,1754306843489,-151.0,0.00047999,120]
[377253948,1754306843519,-211.09601854,0.00047999,120]
[377253949,1754306843547,-151.0,0.00047999,120]
[377253950,1754306843574,-151.0,0.00047999,120]
[377253951,1754306843607,-151.0,0.00047999,120]
[377253952,1754306843635,-151.0,0.00047999,120]
[377253953,1754306843663,-151.0,0.00047999,120]
[377253954,1754306843692,-151.0,0.00047999,120]
[377253955,1754306843721,-171.2514499,0.00047999,120]
[377253956,1754306843750,-500.0,0.00047999,120]
[377253957,1754306843779,-500.0,0.00047999,120]
[377253958,1754306843809,-500.0,0.00047999,120]
[377253959,1754306843844,-500.0,0.00047999,120]
[377253960,1754306843876,-500.0,0.00047999,120]
[377253961,1754306843906,-500.0,0.00047999,120]
[377253962,1754306843937,-500.0,0.00047999,120]
[377253963,1754306843965,-500.0,0.00047999,120]